bitfinex/quotes_ETHUSD_20251004
["timestamp","ask_amount","ask_price","bid_price","bid_amount"]
[1759577296242,0.461,4491.9,4491.8,2.6212]
[1759577297048,0.01,4491.9,4491.8,2.6212]
[1759577302553,0.01,4491.9,4491.8,3.0555]
[1759577302919,0.01,4491.9,4491.8,2.6212]
[1759577304160,0.4736,4491.9,4491.8,2.6212]
[1759577304352,0.4736,4491.9,4491.8,2.51]
[1759577304529,0.4756,4491.9,4491.8,2.51]
[1759577308468,2.22634167,4491.7,4490.7,2.4]
[1759577308642,0.4619,4491.6,4491.2,0.1112]
[1759577308966,0.4619,4491.5,4491.3,2.509]
[1759577310042,2.34944949,4491.9,4491.3,2.509]
[1759577310244,2.2263345,4491.7,4491.3,2.509]
[1759577310467,0.4619,4491.6,4491.3,2.509]
[1759577311182,0.4619,4491.5,4491.3,2.509]
[1759577314666,2.22633104,4491.7,4491.3,2.509]
[1759577315005,0.4619,4491.5,4491.3,2.509]
[1759577315804,0.4619,4491.5,4491.2,0.1112]
[1759577315981,0.4619,4491.5,4491.4,2.509]
[1759577316638,0.4619,4491.5,4491.2,0.1112]
[1759577316906,2.22666285,4491.1,4490.6,0.1122]
[1759577317065,0.4619,4491.0,4490.7,2.509]
[1759577317269,0.4619,4491.0,4490.7,2.81557511]
[1759577317517,2.2265815,4491.2,4490.8,0.30657511]
[1759577317716,2.2265815,4491.2,4490.9,2.51]
[1759577317870,0.4619,4491.1,4490.9,2.51]
[1759577318271,0.4619,4491.1,4490.9,2.81657511]
[1759577318520,2.79964093,4491.3,4490.9,2.81657511]
[1759577318669,0.4619,4491.2,4490.9,2.81657511]
[1759577318868,2.68851476,4491.2,4490.9,2.81657511]
[1759577319696,0.4619,4491.1,4490.9,2.81657511]
[1759577320370,2.22657641,4491.2,4490.9,2.81657511]
[1759577320772,2.22662888,4491.1,4490.9,2.81657511]
[1759577323321,2.68857557,4491.0,4490.9,0.30657511]
[1759577323521,2.22672515,4490.9,4490.8,0.001]
[1759577323826,2.68858358,4491.0,4490.9,2.509]
[1759577324385,0.4619,4491.0,4490.9,2.509]
[1759577325715,0.4619,4491.0,4490.8,0.001]
[1759577325921,0.4619,4491.0,4490.9,2.509]
[1759577326087,2.68857557,4491.0,4490.9,2.509]
[1759577326289,2.68857557,4491.0,4490.8,0.001]
[1759577326492,2.68857557,4491.0,4490.9,2.509]
[1759577327959,2.509,4492.5,4490.9,3.26727511]
[1759577328092,0.1112,4491.2,4490.9,3.26727511]
[1759577328984,2.33780747,4491.2,4490.9,3.26727511]
[1759577329405,2.33780747,4491.2,4490.9,2.81557511]
[1759577330132,2.2266311,4491.1,4490.9,2.81557511]
[1759577330486,2.33779263,4491.2,4490.9,2.81557511]
[1759577330934,2.2266304,4491.1,4490.9,2.81557511]
[1759577331133,2.33779099,4491.2,4490.9,2.81557511]
[1759577331348,0.1112,4491.2,4490.9,2.81557511]
[1759577331526,2.22667557,4491.0,4490.9,2.81557511]
[1759577332310,0.5422,4491.2,4490.9,2.81557511]
[1759577332311,2.22664235,4491.1,4490.9,2.81557511]
[1759577332704,0.5422,4491.2,4490.9,2.81557511]
[1759577332908,0.1112,4491.2,4490.9,2.509]
[1759577333660,2.33778643,4491.2,4490.9,2.509]
[1759577336545,0.1112,4491.2,4490.9,2.509]
[1759577337643,2.33779064,4491.2,4490.9,2.509]
[1759577337861,0.1112,4491.2,4490.9,2.509]
[1759577338730,2.22662671,4491.1,4490.9,2.509]
[1759577338930,2.33778863,4491.2,4490.9,2.509]
[1759577339267,0.1112,4491.2,4490.9,2.509]
[1759577339580,2.33782494,4491.2,4490.9,2.509]
[1759577339742,2.22662676,4491.1,4490.9,2.509]
[1759577340442,2.65762676,4491.1,4490.9,2.509]
[1759577341257,2.22667557,4491.0,4490.9,2.509]
[1759577341613,2.65764061,4491.1,4490.9,2.509]
[1759577341830,0.431,4491.1,4490.9,2.509]
[1759577342457,2.22667557,4491.0,4490.9,2.509]
[1759577342659,2.65764054,4491.1,4490.9,2.509]
[1759577342872,2.65764054,4491.1,4490.8,0.001]
[1759577342873,2.65767557,4491.0,4490.8,0.001]
[1759577343167,2.33792515,4490.9,4490.8,0.001]
[1759577343332,2.33792515,4490.9,4490.8,2.514]
[1759577343517,2.76892515,4490.9,4490.8,2.514]
[1759577351055,2.70212415,4490.9,4490.8,2.514]
[1759577354078,2.70212415,4490.9,4490.8,2.513]
[1759577358353,2.27112415,4490.9,4490.8,2.513]
[1759577362327,2.33792515,4490.9,4490.8,2.513]
[1759577368142,0.1112,4490.9,4490.8,2.513]
[1759577368753,0.1112,4490.9,4490.8,3.29087511]
[1759577368907,0.1112,4490.9,4490.8,3.69971029]
[1759577372750,0.002,4491.1,4490.8,3.69971029]
[1759577372922,0.1132,4491.1,4490.9,0.4518]
[1759577373534,0.1132,4491.1,4491.0,0.4518]
[1759577378533,0.1132,4491.1,4490.8,2.513]
[1759577378739,0.002,4491.1,4491.0,0.4518]
[1759577378939,0.002,4491.1,4491.0,0.563]
[1759577379162,0.002,4491.1,4491.0,0.1112]
[1759577379576,2.22862599,4491.1,4490.8,0.79747666]
[1759577379748,2.22862599,4491.1,4491.0,2.511]
[1759577384294,0.002,4491.1,4491.0,2.511]
[1759577384639,2.22862599,4491.1,4491.0,2.511]
[1759577385276,0.002,4491.1,4491.0,2.511]
[1759577388090,0.002,4491.1,4491.0,2.9628]
[1759577388457,0.002,4491.1,4491.0,2.511]
[1759577389292,0.002,4491.1,4491.0,2.9628]
[1759577389494,0.002,4491.1,4491.0,3.41677271]
[1759577390101,0.002,4491.1,4491.0,3.87317271]
[1759577392375,0.002,4491.1,4491.0,3.87737271]
[1759577395491,0.002,4491.1,4491.0,6.10404828]
[1759577396231,0.002,4491.1,4491.0,6.41062339]
[1759577397828,0.002,4491.1,4491.0,3.42137271]
[1759577398220,0.002,4491.1,4491.0,5.64804828]
[1759577400195,0.002,4491.1,4491.0,0.91037271]
[1759577400395,0.4364,4491.1,4491.0,3.76542963]
[1759577400708,0.002,4491.1,4491.0,3.76542963]
[1759577401950,0.4364,4491.1,4491.0,3.76542963]
[1759577403826,0.002,4491.1,4491.0,3.76542963]
[1759577404236,0.002,4491.1,4491.0,2.9664]
[1759577405139,0.002,4491.1,4491.0,3.76549843]
[1759577405330,0.002,4491.1,4491.0,2.9664]
[1759577406831,0.002,4491.1,4491.0,2.9654]
[1759577407057,0.002,4491.1,4491.0,3.76455427]
[1759577409761,0.002,4491.1,4491.0,2.9654]
[1759577410652,0.002,4491.1,4491.0,3.76483984]
[1759577412616,0.4364,4491.1,4491.0,1.25583984]
[1759577412754,0.4364,4491.1,4491.0,3.76483984]
[1759577412953,0.4364,4491.1,4491.0,2.9654]
[1759577413586,0.002,4491.1,4491.0,2.9654]
[1759577413791,0.002,4491.1,4491.0,6.90847093]
[1759577413989,0.002,4491.1,4491.0,7.36447093]
[1759577414618,0.002,4491.1,4491.0,6.56503109]
[1759577416193,0.002,4491.1,4491.0,7.76360888]
[1759577417952,0.002,4491.6,4491.5,2.22642769]
[1759577418152,0.002,4491.6,4491.5,5.37584557]
[1759577418365,0.002,4491.6,4491.5,7.03100203]
[1759577418777,0.002,4491.6,4491.5,7.14220203]
[1759577419110,0.002,4491.6,4491.5,5.94304557]
[1759577422176,0.01,4491.9,4491.8,2.22627899]
[1759577422403,0.01,4491.9,4491.8,7.05810921]
[1759577422608,0.01,4491.9,4491.8,7.61620921]
[1759577422760,0.01,4491.9,4491.8,5.38993022]
[1759577422966,0.01,4491.9,4491.8,7.74060921]
[1759577423163,0.01,4491.9,4491.8,6.54328656]
[1759577425479,0.01,4491.9,4491.8,6.99018656]
[1759577426702,0.01,4491.9,4491.8,21.49018656]
[1759577427901,0.01,4491.9,4491.8,22.68750921]
[1759577429113,0.01,4491.9,4491.8,21.49018656]
[1759577430224,0.01,4491.9,4491.8,21.79749283]
[1759577431418,0.01,4492.9,4492.7,2.22578476]
[1759577431630,0.01,4492.9,4492.8,2.84083294]
[1759577431938,0.01,4492.9,4492.8,5.06661641]
[1759577432142,0.01,4492.9,4492.8,2.81857511]
[1759577432301,2.23573393,4492.9,4492.8,2.81857511]
[1759577432505,0.4626,4492.9,4492.8,2.81857511]
[1759577433849,0.01,4492.9,4492.8,2.81857511]
[1759577434053,0.01,4492.9,4492.8,4.73778347]
[1759577434235,0.01,4492.9,4492.8,2.81857511]
[1759577434557,0.01,4492.9,4492.8,4.73778347]
[1759577434754,0.01,4492.9,4492.8,5.31309026]
[1759577435843,0.01,4492.9,4492.8,3.08730679]
[1759577436756,0.01,4492.9,4492.8,5.31309026]
[1759577439041,0.01,4492.9,4492.8,5.75949026]
[1759577439817,0.01,4492.9,4492.8,5.42429026]
[1759577440117,0.01,4492.9,4492.8,5.87069026]
[1759577440351,0.01,4492.9,4492.8,6.32329026]
[1759577440954,0.01,4492.9,4492.8,6.92073539]
[1759577441344,0.01,4492.9,4492.8,6.47433539]
[1759577441548,0.01,4492.9,4492.8,4.24855192]
[1759577441756,0.01,4492.9,4492.8,1.73655192]
[1759577441923,0.01,4492.9,4492.8,2.6222]
[1759577441924,0.4626,4492.9,4492.8,2.6222]
[1759577442423,0.01,4492.9,4492.8,2.6222]
[1759577442853,0.01,4492.9,4492.8,17.71964513]
[1759577442854,0.4626,4492.9,4492.8,17.71964513]
[1759577443033,0.4626,4492.9,4492.8,19.9454286]
[1759577443358,0.4626,4492.9,4492.8,22.08642208]
[1759577443781,0.4626,4492.9,4492.8,7.58642208]
[1759577443925,0.01,4492.9,4492.8,5.4454286]
[1759577444927,0.01,4492.9,4492.8,6.11334129]
[1759577445128,0.01,4492.9,4492.8,5.51589616]
[1759577445765,0.4626,4492.9,4492.8,3.29011269]
[1759577446066,0.01,4492.9,4492.8,7.37456678]
[1759577449231,0.01,4492.9,4492.8,5.51589616]
[1759577449634,0.01,4492.9,4492.8,5.96229616]
[1759577450244,0.01,4492.9,4492.8,6.75888967]
[1759577450448,0.01,4492.9,4492.8,6.31248967]
[1759577450660,0.01,4492.9,4492.8,6.61903164]
[1759577450868,0.01,4492.9,4492.8,8.89665062]
[1759577451735,0.01,4492.9,4492.8,6.38565062]
[1759577451936,0.01,4492.9,4492.8,8.89565062]
[1759577452466,0.01,4492.9,4492.8,6.66986715]
[1759577452666,0.4771,4492.9,4492.8,8.89565062]
[1759577453052,0.4791,4492.9,4492.8,8.89565062]
[1759577453276,0.012,4492.9,4492.8,8.09905711]
[1759577455107,0.012,4492.9,4492.8,8.55685711]
[1759577456110,0.012,4492.9,4492.8,9.75417976]
[1759577457372,0.012,4492.9,4492.8,8.86416338]
[1759577457882,0.012,4492.9,4492.8,11.26416338]
[1759577458470,0.012,4492.9,4492.8,8.9865444]
[1759577458669,0.012,4492.9,4492.8,34.8015094]
[1759577458904,0.012,4492.9,4492.8,34.5742194]
[1759577459614,0.012,4492.9,4492.8,34.2894084]
[1759577460203,0.012,4492.9,4492.8,26.2603804]
[1759577460409,0.012,4492.9,4492.8,28.17588738]
[1759577460980,0.012,4492.9,4492.8,24.99905711]
[1759577461226,0.012,4492.9,4492.8,30.96398311]
[1759577461435,0.012,4492.9,4492.8,30.50159911]
[1759577463536,0.012,4492.9,4492.8,24.99905711]
[1759577463744,0.012,4492.9,4492.8,28.60538011]
[1759577465143,0.012,4492.9,4492.8,24.99905711]
[1759577465499,0.012,4492.9,4492.8,27.04293011]
[1759577465729,0.012,4492.9,4492.8,24.99905711]
[1759577466617,0.012,4492.9,4492.8,13.82662111]
[1759577466816,0.012,4492.9,4492.8,14.28442111]
[1759577467154,0.012,4492.9,4492.8,28.78442111]
[1759577467453,0.012,4492.9,4492.8,28.32662111]
[1759577467753,0.012,4492.9,4492.8,28.78442111]
[1759577469457,0.012,4492.9,4492.8,27.59593011]
[1759577470282,0.012,4492.9,4492.8,13.09593011]
[1759577470775,0.012,4492.9,4492.8,27.59593011]
[1759577471877,0.012,4492.9,4492.8,24.99905711]
[1759577472073,0.012,4492.9,4492.8,22.48905711]
[1759577472259,0.012,4492.9,4492.8,24.99805711]
[1759577473762,0.012,4492.9,4492.8,10.49805711]
[1759577473961,0.012,4492.9,4492.8,5.71143813]
[1759577474162,0.4791,4492.9,4492.7,1.19772441]
[1759577474370,0.012,4492.9,4492.8,2.508]
[1759577474687,0.012,4492.9,4492.6,3.53479792]
[1759577474870,0.4671,4492.8,4492.7,2.509]
[1759577475571,0.4671,4492.8,4492.7,4.75709134]
[1759577475776,0.4671,4492.8,4492.7,5.93736371]
[1759577477107,0.4671,4492.8,4492.7,3.7115307]
[1759577477403,0.4671,4492.8,4492.7,2.81554197]
[1759577477602,0.4671,4492.8,4492.7,2.509]
[1759577478269,0.4671,4492.8,4492.6,3.53480175]
[1759577478469,0.012,4492.9,4492.7,4.73483301]
[1759577479101,0.4671,4492.8,4492.7,4.73483301]
[1759577479478,0.4671,4492.8,4492.7,2.509]
[1759577480382,0.4671,4492.8,4492.7,2.81554197]
[1759577480795,0.4671,4492.8,4492.7,5.04137498]
[1759577480990,0.012,4492.9,4492.7,5.04137498]
[1759577481173,0.4802,4492.9,4492.7,5.04137498]
[1759577481373,0.4802,4492.9,4492.8,2.22578347]
[1759577481808,0.4802,4492.9,4492.8,0.30654197]
[1759577482372,0.4802,4492.9,4492.8,2.55458327]
[1759577482373,0.012,4492.9,4492.8,2.55458327]
[1759577482685,0.4802,4492.9,4492.8,2.55458327]
[1759577482884,0.4802,4492.9,4492.8,2.53232544]
[1759577483086,0.4802,4492.9,4492.8,0.30654197]
[1759577486024,0.4802,4492.9,4492.8,2.53232544]
[1759577487037,0.4802,4492.9,4492.8,0.30654197]
[1759577487396,0.012,4492.9,4492.8,2.53232544]
[1759577488098,0.012,4492.9,4492.8,3.3305968]
[1759577488299,0.012,4492.9,4492.8,1.10481333]
[1759577488500,0.4802,4492.9,4492.8,1.10481333]
[1759577490144,0.4802,4492.9,4492.8,3.3305968]
[1759577491474,0.012,4492.9,4492.8,3.02405483]
[1759577492375,0.012,4492.9,4492.8,0.79827136]
[1759577492678,0.012,4492.9,4492.8,3.02405483]
[1759577493050,0.4801,4492.9,4492.8,3.02405483]
[1759577493935,0.4801,4492.9,4492.8,0.79827136]
[1759577494137,0.4801,4492.9,4492.8,3.02405483]
[1759577494473,0.012,4492.9,4492.8,3.02405483]
[1759577495063,0.012,4492.9,4492.8,0.79827136]
[1759577496302,0.012,4492.9,4492.8,3.02405483]
[1759577496592,0.012,4492.9,4492.8,0.79827136]
[1759577497097,0.012,4492.9,4492.8,3.02405483]
[1759577497306,0.012,4492.9,4492.8,0.79827136]
[1759577498074,0.012,4492.9,4492.7,4.84601794]
[1759577498907,0.4801,4492.9,4492.7,4.84601794]
[1759577499383,0.012,4492.9,4492.7,4.84601794]
[1759577499565,0.012,4492.9,4492.8,2.22578347]
[1759577500275,0.012,4492.9,4492.7,2.92674197]
[1759577500782,0.4801,4492.9,4492.7,2.92674197]
[1759577501908,0.4801,4492.9,4492.8,2.509]
[1759577502206,0.012,4492.9,4492.8,2.509]
[1759577502406,0.4801,4492.9,4492.8,2.509]
[1759577504810,0.012,4492.9,4492.8,2.509]
[1759577505182,0.012,4492.9,4492.8,2.9891]
[1759577506418,0.012,4492.9,4492.8,3.29564197]
[1759577510338,0.012,4492.9,4492.8,0.78664197]
[1759577510513,0.4509,4492.9,4492.8,2.9891]
[1759577511030,0.012,4492.9,4492.8,2.9891]
[1759577520709,0.4509,4492.9,4492.8,2.9891]
[1759577521838,0.4509,4492.9,4492.6,1.19772441]
[1759577522043,0.4389,4492.8,4492.7,2.509]
[1759577523221,0.4389,4492.8,4492.7,3.307843]
[1759577523938,0.1232,4492.9,4492.7,3.307843]
[1759577524518,0.5621,4492.9,4492.7,3.307843]
[1759577526019,0.4389,4492.8,4492.7,3.307843]
[1759577526220,0.4389,4492.8,4492.7,2.509]
[1759577527724,0.012,4492.9,4492.7,2.53125833]
[1759577527941,0.012,4492.9,4492.8,1.59272388]
[1759577528742,0.012,4492.9,4492.8,1.61498171]
[1759577530148,0.012,4492.9,4492.8,3.84076518]
[1759577530978,0.012,4492.9,4492.8,4.27966518]
[1759577531251,0.012,4492.9,4492.8,3.48082218]
[1759577532374,0.012,4492.9,4492.8,4.42216487]
[1759577532577,0.012,4492.9,4492.8,4.39990704]
[1759577532921,0.012,4492.9,4492.8,2.17412357]
[1759577533126,0.012,4492.9,4492.8,4.42216487]
[1759577533360,0.012,4492.9,4492.8,4.39990704]
[1759577534865,0.012,4492.9,4492.8,2.17412357]
[1759577535160,0.012,4492.9,4492.8,3.48082218]
[1759577542238,0.012,4492.9,4492.8,3.00702218]
[1759577546032,0.012,4492.9,4492.8,0.78123871]
[1759577546438,0.012,4492.9,4492.8,0.75898088]
[1759577546682,0.4421,4492.9,4492.8,0.4389]
[1759577548457,0.4421,4492.9,4492.8,2.9469]
[1759577548651,0.4421,4492.9,4492.8,3.74519578]
[1759577549386,0.4421,4492.9,4492.8,2.9469]
[1759577550095,0.4421,4492.9,4492.8,3.74519578]
[1759577551356,0.4421,4492.9,4492.8,2.9469]
[1759577551581,0.012,4492.9,4492.8,3.74507829]
[1759577552257,0.4801,4492.9,4492.8,2.9469]
[1759577554695,0.012,4492.9,4492.8,2.9469]
[1759577557990,0.012,4492.9,4492.8,3.26698088]
[1759577558171,0.012,4492.9,4492.8,5.92346435]
[1759577559378,0.012,4492.9,4492.8,3.69768088]
[1759577559697,0.012,4492.9,4492.8,3.71993871]
[1759577559902,0.012,4492.9,4492.8,5.94572218]
[1759577560104,0.012,4492.9,4492.8,5.92346435]
[1759577560600,0.012,4492.9,4492.8,6.43859627]
[1759577560780,0.012,4492.9,4492.8,8.06702068]
[1759577565707,0.012,4492.9,4492.8,6.86929627]
[1759577565874,0.012,4492.9,4492.8,6.98049627]
[1759577567794,0.002,4493.4,4492.9,14.23471148]
[1759577567988,0.002,4493.4,4493.3,1.19651825]
[1759577568306,0.002,4493.4,4493.3,6.38313123]
[1759577568510,0.002,4493.4,4493.3,6.88062317]
[1759577571329,0.002,4493.4,4493.3,5.68456396]
[1759577576610,0.002,4493.8,4493.7,2.22533769]
[1759577576812,0.002,4493.8,4493.7,4.75559106]
[1759577577017,0.002,4493.8,4493.7,5.05341857]
[1759577577413,0.002,4493.8,4493.7,5.16461857]
[1759577580438,0.002,4493.8,4493.7,4.84453769]
[1759577581618,0.002,4493.8,4493.7,5.16461857]
[1759577581998,0.002,4493.8,4493.7,6.03809681]
[1759577582738,0.002,4493.8,4493.7,6.83444362]
[1759577583593,0.002,4493.8,4493.7,6.47529681]
[1759577586323,0.002,4493.8,4493.7,6.03809681]
[1759577586530,0.002,4493.8,4493.7,6.47529681]
[1759577590468,0.002,4493.8,4493.7,6.03809681]
[1759577593370,0.002,4493.8,4493.7,7.23415602]
[1759577595675,0.002,4493.8,4493.7,6.47529681]
[1759577596371,0.002,4493.8,4493.7,6.03809681]
[1759577596540,0.01,4493.9,4493.8,2.54536905]
[1759577596865,0.01,4493.9,4493.8,4.11701987]
[1759577597285,0.01,4493.9,4493.8,4.58021987]
[1759577601462,0.01,4493.9,4493.8,4.14301987]
[1759577607068,0.01,4493.9,4493.8,6.54301987]
[1759577610326,0.002,4494.3,4494.2,2.22509011]
[1759577610471,0.002,4494.3,4494.2,6.75930518]
[1759577610778,0.002,4494.3,4494.2,5.16337099]
[1759577610982,0.002,4494.3,4494.2,5.62547099]
[1759577612699,0.002,4494.3,4494.2,8.02547099]
[1759577616781,0.4721,4494.9,4494.8,2.22479309]
[1759577616985,0.4721,4494.9,4494.8,4.73179309]
[1759577617413,0.4721,4494.9,4494.8,5.20389309]
[1759577617680,0.01,4494.9,4494.8,5.63517397]
[1759577617912,0.01,4494.9,4494.8,6.54061926]
[1759577618097,0.4721,4494.9,4494.8,6.54061926]
[1759577618512,0.4721,4494.9,4494.8,0.5833]
[1759577618721,0.4721,4494.9,4494.8,2.9791]
[1759577621288,0.4721,4494.9,4494.8,3.77529895]
[1759577621839,0.4721,4494.9,4494.8,4.09537983]
[1759577622186,0.4721,4494.9,4494.8,6.34242085]
[1759577622388,0.4721,4494.9,4494.8,6.32017292]
[1759577622587,0.4721,4494.9,4494.8,5.52397397]
[1759577624036,0.4721,4494.9,4494.8,6.32028987]
[1759577624242,0.4721,4494.9,4494.8,5.52397397]
[1759577625951,0.01,4494.9,4494.8,5.52397397]
[1759577626322,0.01,4494.9,4494.8,6.41829982]
[1759577627317,0.01,4494.9,4494.8,5.52397397]
[1759577627716,0.4721,4494.9,4494.8,5.52397397]
[1759577628434,0.4721,4494.9,4494.8,3.29918088]
[1759577628636,0.4721,4494.9,4494.8,5.52397397]
[1759577629642,0.01,4494.9,4494.8,3.29918088]
[1759577629842,0.4721,4494.9,4494.8,3.29918088]
[1759577630219,0.4721,4494.9,4494.8,5.52397397]
[1759577630427,0.01,4494.9,4494.8,5.52397397]
[1759577631566,0.48,4494.9,4494.8,3.29918088]
[1759577631750,0.48,4494.9,4494.8,5.52397397]
[1759577632153,0.01,4494.9,4494.8,3.29918088]
[1759577632363,0.482,4494.9,4494.8,3.29918088]
[1759577633250,0.482,4494.9,4494.8,5.52397397]
[1759577633572,0.482,4494.9,4494.8,3.29918088]
[1759577634269,0.482,4494.9,4494.8,5.52397397]
[1759577634445,0.482,4494.9,4494.8,3.29918088]
[1759577635981,0.482,4494.9,4494.8,0.79218088]
[1759577636287,0.482,4494.9,4494.8,5.52397397]
[1759577636584,0.482,4494.9,4494.8,3.29918088]
[1759577637378,0.482,4494.9,4494.8,2.9791]
[1759577637764,0.482,4494.9,4494.8,3.29918088]
[1759577640200,0.432,4494.9,4494.8,3.29918088]
[1759577640560,0.432,4494.9,4494.8,2.9791]
[1759577641170,0.432,4494.9,4494.8,0.4721]
[1759577641501,0.432,4494.9,4494.8,2.9791]
[1759577643298,0.1112,4495.0,4494.8,5.20389309]
[1759577643470,0.1112,4495.0,4494.8,2.9791]
[1759577643671,0.1112,4495.0,4494.8,0.4721]
[1759577644000,0.1112,4495.0,4494.9,2.507]
[1759577644588,0.5812,4495.0,4494.9,2.507]
[1759577648112,0.5812,4495.0,4494.8,0.47]
[1759577648406,0.5812,4495.0,4494.9,3.30436147]
[1759577650483,0.5832,4495.0,4494.9,3.30436147]
[1759577650814,0.5332,4495.0,4494.9,3.30436147]
[1759577652015,0.5332,4495.0,4494.8,0.79736147]
[1759577652179,0.0632,4495.0,4494.9,2.507]
[1759577652777,0.5332,4495.0,4494.9,2.507]
[1759577655056,0.5332,4495.0,4494.7,1.46510022]
[1759577655193,0.0632,4495.0,4494.9,0.59797279]
[1759577655510,0.1132,4495.0,4494.9,2.507]
[1759577655895,0.5832,4495.0,4494.9,2.507]
[1759577658130,0.5832,4495.0,4494.8,0.59797279]
[1759577658451,0.1132,4495.0,4494.9,2.507]
[1759577658960,0.5832,4495.0,4494.9,2.507]
[1759577663614,0.5832,4495.0,4494.7,0.59797279]
[1759577663833,0.1132,4495.0,4494.8,2.507]
[1759577664237,0.434,4494.9,4494.8,2.507]
[1759577669742,0.434,4494.9,4494.8,2.508]
[1759577679151,0.1132,4495.0,4494.8,2.508]
[1759577680918,0.5735,4495.0,4494.8,2.508]
[1759577681320,0.4603,4494.9,4494.8,2.508]
[1759577682021,0.1132,4495.0,4494.8,2.508]
[1759577683653,0.5735,4495.0,4494.8,2.508]
[1759577685664,0.1132,4495.0,4494.8,2.508]
[1759577685835,0.4603,4494.9,4494.8,2.508]
[1759577686159,0.1132,4495.0,4494.8,2.508]
[1759577686365,0.5735,4495.0,4494.8,2.508]
[1759577688783,0.1132,4495.0,4494.8,2.508]
[1759577689482,0.1132,4495.0,4494.8,3.10597279]
[1759577689885,0.1132,4495.0,4494.9,0.4346]
[1759577691586,0.002,4495.0,4494.9,0.78408088]
[1759577691792,0.002,4495.0,4494.9,1.45178545]
[1759577695865,0.002,4495.0,4494.9,1.13170457]
[1759577696497,0.002,4495.0,4494.9,1.72917054]
[1759577700093,0.002,4495.0,4494.9,0.59746597]
[1759577700295,0.002,4495.0,4494.8,0.001]
[1759577700296,2.22474359,4494.9,4494.8,0.001]
[1759577700492,2.68654359,4494.9,4494.8,0.001]
[1759577701131,2.77559702,4494.9,4494.8,0.001]
[1759577701639,2.88679702,4494.9,4494.8,0.001]
[1759577710043,0.66205343,4494.9,4494.8,0.001]
[1759577710544,2.88679702,4494.9,4494.8,0.001]
[1759577710962,2.42499702,4494.9,4494.8,0.001]
[1759577713433,2.88679702,4494.9,4494.8,0.001]
[1759577715974,2.42499702,4494.9,4494.8,0.001]
[1759577716274,7.07679702,4494.9,4494.8,0.001]
[1759577717376,6.61499702,4494.9,4494.8,0.001]
[1759577718137,7.07679702,4494.9,4494.8,0.001]
[1759577719070,6.61499702,4494.9,4494.8,0.001]
[1759577720080,4.39025343,4494.9,4494.8,0.001]
[1759577720860,4.3012,4494.9,4494.8,0.001]
[1759577722680,4.3012,4494.9,4494.8,0.4312]
[1759577723082,4.3012,4494.9,4494.8,0.001]
[1759577723591,4.3012,4494.9,4494.8,0.4312]
[1759577725058,4.3012,4494.9,4494.8,0.001]
[1759577725059,6.96054359,4494.9,4494.8,0.001]
[1759577725894,6.52594359,4494.9,4494.8,0.001]
[1759577726096,4.3012,4494.9,4494.8,0.001]
[1759577726661,6.52594359,4494.9,4494.8,0.001]
[1759577726883,4.3012,4494.9,4494.8,0.001]
[1759577727271,6.52594359,4494.9,4494.8,0.001]
[1759577727680,4.3012,4494.9,4494.8,0.001]
[1759577732077,2.2249911,4494.4,4494.3,0.001]
[1759577732282,2.2249697,4494.5,4494.3,0.001]
[1759577732562,0.4359,4494.4,4494.3,0.001]
[1759577732777,3.17757807,4494.4,4494.3,0.001]
[1759577732990,0.08906454,4494.4,4494.3,0.001]
[1759577733313,2.22490918,4494.6,4494.3,0.001]
[1759577733666,0.66792607,4494.6,4494.3,0.001]
[1759577733867,0.66792607,4494.6,4494.3,0.4352]
[1759577734503,2.89284475,4494.6,4494.3,0.4352]
[1759577734703,2.22494845,4494.5,4494.3,0.4352]
[1759577734910,2.73671562,4494.5,4494.3,0.4352]
[1759577735208,2.7367165,4494.5,4494.3,0.4352]
[1759577735921,0.51176717,4494.5,4494.3,0.001]
[1759577736092,2.22488042,4494.7,4494.3,0.001]
[1759577736286,2.8926992,4494.8,4494.4,0.4342]
[1759577736726,2.22484879,4494.7,4494.4,0.4342]
[1759577738634,2.89270575,4494.8,4494.4,0.4342]
[1759577738788,0.28946106,4494.7,4494.4,0.4342]
[1759577739122,2.51431323,4494.7,4494.4,0.4342]
[1759577739700,0.28946106,4494.7,4494.3,0.001]
[1759577739887,0.4342,4494.7,4494.4,0.4342]
[1759577740088,2.22475462,4494.9,4494.5,0.4342]
[1759577740402,0.4342,4494.9,4494.5,2.507]
[1759577740607,0.002,4495.0,4494.6,0.4342]
[1759577740608,2.22669694,4495.0,4494.6,0.4342]
[1759577740809,0.002,4495.0,4494.7,0.4342]
[1759577741405,0.002,4495.0,4494.5,2.507]
[1759577741943,0.002,4495.0,4494.6,0.4342]
[1759577742442,0.002,4495.0,4494.5,2.507]
[1759577742443,0.1112,4494.7,4494.5,2.507]
[1759577742929,0.1112,4494.7,4494.6,0.4342]
[1759577749854,0.1112,4494.7,4494.5,2.507]
[1759577750455,0.1112,4494.7,4494.5,2.9469]
[1759577750874,0.1112,4494.7,4494.6,0.4399]
[1759577754338,0.1112,4494.7,4494.5,2.507]
[1759577754664,0.1112,4494.7,4494.6,0.4399]
[1759577759783,0.1112,4494.7,4494.5,2.507]
[1759577760685,0.1112,4494.7,4494.6,0.001]
[1759577761692,0.5513,4494.7,4494.6,2.507]
[1759577763565,0.5513,4494.7,4494.6,0.001]
[1759577763765,0.82930907,4494.7,4494.6,2.507]
[1759577764169,0.5513,4494.7,4494.6,2.507]
[1759577765455,2.77614259,4494.7,4494.6,2.507]